fUST/lending_fUST_20251221
["ID","MTS","AMOUNT","RATE_DAILY","PERIOD"]
[399291807,1766247041425,-500.0,0.0001523,2]
[399291808,1766247041434,-500.0,0.0001523,2]
[399291809,1766247041443,-674.47,0.00015253,2]
[399291810,1766247041453,-720.0,0.00015254,2]
[399291811,1766247041462,-3764.12555437,0.00015285,2]
[399291813,1766247041471,-223.13203346,0.000153,2]
[399291814,1766247041481,-388.49180522,0.000153,2]
[399291815,1766247041490,-313.21462394,0.000153,2]
[399291816,1766247041499,-156.60731195,0.000153,2]
[399291817,1766247041508,-257.06314275,0.00015342,2]
[399291819,1766247041518,-2505.71699154,0.00015343,3]
[399291820,1766247041528,-271.3139524,0.000154,7]
[399291821,1766247041537,-177.0,0.00015412,2]
[399291822,1766247041546,-218.47130127,0.00015451,2]
[399291823,1766247041555,-237.54273147,0.00015499,2]
[399291824,1766247041564,-1372.92359637,0.0001555,2]
[399291826,1766247041574,-2505.71699154,0.00015615,3]
[399291827,1766247041584,-388.49180522,0.00015755,2]
[399291828,1766247041593,-1111.0,0.00015778,2]
[399291829,1766247041602,-237.54273147,0.0001583,2]
[399291830,1766247041611,-2505.71699154,0.00015887,4]
[399291832,1766247041620,-2505.71699154,0.00016158,4]
[399291833,1766247041629,-237.54273147,0.00016162,2]
[399291834,1766247041639,-674.47,0.0001621,2]
[399291835,1766247041649,-388.49180522,0.00016211,3]
[399291836,1766247041659,-223.13203346,0.00016243,4]
[399291837,1766247041668,-381.09500078,0.00016292,2]
[399291839,1766247041677,-587.0,0.00016325,2]
[399291840,1766247041686,-1111.0,0.00016326,2]
[399291841,1766247041695,-411.9070095,0.00016356,2]
[399291842,1766247041704,-218.68977257,0.00016384,2]
[399291843,1766247041713,-2505.71699154,0.0001643,5]
[399291845,1766247041723,-500.0,0.00016438,2]
[399291846,1766247041733,-500.0,0.00016438,2]
[399291847,1766247041742,-500.0,0.00016438,2]
[399291848,1766247041752,-500.0,0.00016438,2]
[399291849,1766247041761,-500.0,0.00016438,2]
[399291851,1766247041771,-500.0,0.00016438,2]
[399291852,1766247041780,-500.0,0.00016438,2]
[399291853,1766247041789,-500.0,0.00016438,2]
[399291854,1766247041799,-650.0,0.00016438,2]
[399291855,1766247041808,-500.0,0.00016438,2]
[399291856,1766247041817,-500.0,0.00016438,2]
[399291858,1766247041827,-500.0,0.00016438,2]
[399291859,1766247041836,-500.0,0.00016438,2]
[399291860,1766247041845,-500.0,0.00016438,2]
[399291861,1766247041854,-500.0,0.00016438,2]
[399291862,1766247041863,-500.0,0.00016438,2]
[399291863,1766247041872,-500.0,0.00016438,2]
[399291865,1766247041882,-500.0,0.00016438,2]
[399291866,1766247041891,-500.0,0.00016438,2]
[399291867,1766247041900,-500.0,0.00016438,2]
[399291868,1766247041909,-184.38321209,0.00016438,2]
[399291869,1766247041918,-500.0,0.00016438,2]
[399291870,1766247041927,-500.0,0.00016438,2]
[399291871,1766247041937,-500.0,0.00016438,2]
[399291872,1766247041946,-500.0,0.00016438,2]
[399291873,1766247041956,-500.0,0.00016438,2]
[399291874,1766247041966,-500.0,0.00016438,2]
[399291875,1766247041980,-500.0,0.00016438,2]
[399291876,1766247041990,-674.47,0.00016493,2]
[399291877,1766247041999,-237.54273147,0.00016494,2]
[399291878,1766247042008,-282.31804964,0.00016524,2]
[399291879,1766247042018,-198.60344018,0.00016524,2]
[399291880,1766247042027,-1023.39779362,0.00016599,2]
[399291881,1766247042036,-677.0215665,0.00016647,2]
[399291882,1766247042046,-388.49180522,0.00016666,4]
[399291886,1766247042235,-9191.2222702,0.00016691,2]
[399291888,1766247042298,-5000.0,0.00016691,2]
[399291889,1766247042307,-5000.0,0.00016691,2]
[399291890,1766247042318,-5000.0,0.00016691,2]
[399291891,1766247042327,-5000.0,0.00016691,2]
[399291893,1766247042336,-2505.71699154,0.00016702,6]
[399291895,1766247042345,-864.0,0.0001678,2]
[399291896,1766247042354,-237.7802742,0.00016825,2]
[399291897,1766247042364,-1111.0,0.00016874,2]
[399291898,1766247042373,-2505.71699154,0.00016973,6]
[399291899,1766247042382,-171.0,0.00017035,2]
[399291901,1766247042391,-171.0,0.00017084,2]
[399291903,1766247042401,-388.49180522,0.00017122,5]
[399291905,1766247042410,-171.0,0.00017128,2]
[399291906,1766247042419,-313.21462394,0.0001713,6]
[399291907,1766247042428,-171.0,0.00017132,2]
[399291908,1766247042437,-171.0,0.00017142,2]
[399291910,1766247042448,-171.0,0.00017172,2]
[399291911,1766247042457,-171.0,0.0001718,2]
[399291912,1766247042466,-223.13203346,0.00017187,6]
[399291913,1766247042476,-171.0,0.00017216,2]
[399291914,1766247042485,-2505.71699154,0.00017245,7]
[399291916,1766247042495,-151.0639305,0.00017302,2]
[399291917,1766247042504,-171.0,0.00017407,2]
[399291918,1766247042513,-204.0,0.00017412,2]
[399291919,1766247042522,-1111.0,0.00017422,2]
[399291920,1766247042531,-282.31804964,0.00017472,2]
[399291922,1766247042541,-171.0,0.00017516,2]
[399291923,1766247042550,-2505.71699154,0.00017517,7]
[399291924,1766247042559,-171.0,0.00017547,2]
[399291925,1766247042568,-674.47,0.00017576,2]
[399291926,1766247042577,-388.49180522,0.00017577,6]
[399291927,1766247042587,-171.0,0.00017604,2]
[399291929,1766247042597,-171.0,0.00017632,2]
[399291930,1766247042607,-171.0,0.00017686,2]
[399291931,1766247042616,-2505.71699154,0.00017788,8]
[399291932,1766247042625,-171.0,0.00017806,2]
[399291933,1766247042634,-700.01,0.0001788,2]
[399291935,1766247042644,-420.0,0.00017893,2]
[399291936,1766247042653,-171.0,0.00017915,2]
[399291937,1766247042662,-1111.0,0.0001797,2]
[399291938,1766247042672,-674.47,0.00017999,2]
[399291939,1766247042682,-674.47,0.00017999,2]
[399291941,1766247042691,-36568.14373747,0.00018,2]
[399291942,1766247042701,-388.49180522,0.00018033,7]
[399291943,1766247042710,-171.0,0.00018052,2]
[399291944,1766247042719,-2505.71699154,0.0001806,8]
[399291945,1766247042730,-223.13203346,0.0001813,8]
[399291947,1766247042739,-171.0,0.00018141,2]
[399291948,1766247042748,-171.0,0.00018164,2]
[399291949,1766247042757,-171.0,0.00018206,2]
[399291950,1766247042766,-171.0,0.00018207,2]
[399291951,1766247042776,-171.0,0.00018235,2]
[399291952,1766247042785,-171.0,0.00018242,2]
[399291954,1766247042794,-2505.71699154,0.00018332,9]
[399291955,1766247042803,-171.0,0.00018344,2]
[399291956,1766247042812,-171.0,0.00018354,2]
[399291957,1766247042822,-282.60036769,0.0001842,2]
[399291958,1766247042833,-198.80204362,0.0001842,2]
[399291960,1766247042842,-1000.0,0.00018458,2]
[399291961,1766247042852,-388.49180522,0.00018488,8]
[399291962,1766247042864,-1111.0,0.00018518,2]
[399291963,1766247042874,-2505.71699154,0.00018604,10]
[399291964,1766247042883,-2841.26684444,0.00018679,2]
[399291966,1766247042892,-674.47,0.00018874,2]
[399291967,1766247042902,-2505.71699154,0.00018875,10]
[399291968,1766247042911,-302.69733596,0.000189,2]
[399291969,1766247042921,-388.49180522,0.00018944,9]
[399291970,1766247042930,-313.21462394,0.00018961,10]
[399291972,1766247042939,-1111.0,0.00019066,2]
[399291973,1766247042948,-223.13203346,0.00019074,10]
[399291974,1766247042958,-302.69733596,0.00019089,2]
[399291975,1766247042967,-2505.71699154,0.00019147,11]
[399291976,1766247042980,-302.69733596,0.00019278,2]
[399291978,1766247042990,-3214.25,0.000193,2]
[399291979,1766247042999,-388.49180522,0.00019399,10]
[399291980,1766247043008,-231.0,0.00019412,2]
[399291981,1766247043019,-2505.71699154,0.00019419,11]
[399291982,1766247043029,-302.69733596,0.00019467,2]
[399291984,1766247043038,-156.38,0.000196,2]
[399291985,1766247043048,-1111.0,0.00019614,2]
[399291986,1766247043057,-302.69733596,0.00019656,2]
[399291987,1766247043066,-2505.71699154,0.0001969,12]
[399291988,1766247043077,-1023.39779362,0.00019696,2]
[399291989,1766247043086,-454.04600394,0.00019845,4]
[399291991,1766247043095,-388.49180522,0.00019855,11]
[399291992,1766247043105,-674.47,0.00019961,2]
[399291993,1766247043114,-2505.71699154,0.00019962,12]
[399291994,1766247043123,-2000.0,0.0002,7]
[399291995,1766247043132,-223.13203346,0.00020017,12]
[399291997,1766247043141,-454.04600394,0.00020034,4]
[399291998,1766247043151,-1111.0,0.00020162,2]
[399291999,1766247043160,-297.358467,0.00020187,2]
[399292000,1766247043169,-454.04600394,0.00020223,4]
[399292001,1766247043178,-2505.71699154,0.00020234,13]
[399292002,1766247043187,-1000.0,0.00020303,2]
[399292004,1766247043196,-244.0,0.00020303,2]
[399292005,1766247043206,-388.49180522,0.0002031,12]
[399292006,1766247043216,-454.04600394,0.00020412,4]
[399292007,1766247043225,-2505.71699154,0.00020505,14]
[399292008,1766247043234,-454.04600394,0.00020601,4]
[399292010,1766247043244,-1111.0,0.0002071,2]
[399292011,1766247043253,-388.49180522,0.00020766,13]
[399292012,1766247043263,-2505.71699154,0.00020777,14]
[399292013,1766247043272,-313.21462394,0.00020791,14]
[399292014,1766247043281,-223.13203346,0.00020961,14]
[399292016,1766247043290,-2505.71699154,0.00021049,15]
[399292017,1766247043299,-388.49180522,0.00021221,14]
[399292018,1766247043309,-674.47,0.00021313,2]
[399292019,1766247043319,-1041.66666667,0.00021314,2]
[399292020,1766247043328,-2505.71699154,0.0002132,15]
[399292021,1766247043338,-3214.25,0.000214,2]
[399292023,1766247043347,-258.0,0.00021412,2]
[399292024,1766247043356,-2505.71699154,0.00021592,16]
[399292025,1766247043366,-388.49180522,0.00021677,15]
[399292026,1766247043375,-2505.71699154,0.00021864,16]
[399292027,1766247043384,-223.13203346,0.00021904,16]
[399292029,1766247043394,-388.49180522,0.00022132,16]
[399292030,1766247043403,-2505.71699154,0.00022135,17]
[399292031,1766247043412,-1000.0,0.00022334,10]
[399292032,1766247043422,-492.0,0.00022334,10]
[399292033,1766247043431,-674.47,0.00022399,2]
[399292034,1766247043440,-674.47,0.00022399,2]
[399292036,1766247043450,-18015.91,0.000224,7]
[399292037,1766247043459,-14717.71965802,0.000224,2]
[399292038,1766247043475,-987.54034198,0.000224,2]
[399292039,1766247043484,-425.05381962,0.00022407,18]
[399292088,1766247045900,-500.0,0.0001523,2]
[399292089,1766247045909,-500.0,0.0001523,2]
[399292090,1766247045919,-2080.66317192,0.00022407,18]
[399292091,1766247045930,-107.61568404,0.00022588,17]
[399292093,1766247045942,-280.87612118,0.00022588,17]
[399292094,1766247045951,-313.21462394,0.00022621,18]
[399292095,1766247045961,-2505.71699154,0.00022679,18]
[399292096,1766247045970,-275.54282678,0.00022794,2]
[399292097,1766247045984,-747.85496684,0.00022794,2]
[399292099,1766247045994,-223.13203346,0.00022848,18]
[399292100,1766247046003,-674.47,0.00022949,2]
[399292101,1766247046012,-2505.71699154,0.0002295,19]
[399292102,1766247046022,-2159.0,0.00022991,2]
[399292103,1766247046031,-1369.853,0.00022991,2]
[399292105,1766247046041,-632.0,0.00022991,2]
[399292106,1766247046050,-415.0,0.00022991,2]
[399292107,1766247046058,-388.49180522,0.00023043,18]
[399292108,1766247046068,-612.4570163,0.000231,7]
[399292109,1766247046076,-2505.71699154,0.00023222,19]
[399292110,1766247046085,-674.47,0.00023395,2]
[399292112,1766247046094,-674.47,0.00023395,2]
[399292113,1766247046104,-674.47,0.00023395,2]
[399292114,1766247046114,-674.47,0.00023395,2]
[399292115,1766247046123,-674.568,0.00023395,2]
[399292116,1766247046133,-30000.0,0.00023396,2]
[399292118,1766247046143,-3016.23004169,0.00023396,2]
[399292137,1766247046773,-3e-08,0.00023396,2]
[399292138,1766247047294,24024.1,0.00041327,20]
[399292139,1766247047436,-1951.69251528,0.00023396,2]
[399292140,1766247047446,-827.37241596,0.00023396,2]
[399292158,1766247050850,-407.26220488,0.00023396,2]
[399292159,1766247050862,-2913.47731066,0.00023396,2]
[399292160,1766247050875,-819.8106255,0.00023396,2]
[399292161,1766247050884,-3244.18937456,0.00023396,2]
[399292162,1766247050895,-1723.73318244,0.00023396,2]
[399292163,1766247050904,-4967.922557,0.00023396,2]
[399292164,1766247050914,-151.0,0.00023396,2]
[399292165,1766247050923,-285.0,0.00023412,2]
[399292166,1766247050932,-755.80355804,0.00023494,20]
[399292167,1766247050944,-1749.9134335,0.00023494,20]
[399292168,1766247050953,-388.49180522,0.00023499,19]
[399292170,1766247050962,-2505.71699154,0.00023765,20]
[399292172,1766247050970,-223.13203346,0.00023791,20]
[399292174,1766247050984,-388.49180522,0.00023954,20]
[399292177,1766247051002,-189.72,0.00024,14]
[399292179,1766247051013,-1041.66666667,0.00024,7]
[399292181,1766247051023,-1639.28465855,0.00024037,21]
[399292183,1766247051036,-414.45031978,0.00024037,21]
[399292235,1766247051556,159.26978959,0.00041327,20]
[399292237,1766247051569,-451.98201321,0.00024037,21]
[399292239,1766247051580,-268.497,0.00024057,2]
[399292241,1766247051589,-2505.71699154,0.00024309,22]
[399292243,1766247051599,-388.49180522,0.0002441,21]
[399292245,1766247051608,-313.21462394,0.00024452,22]
[399292247,1766247051617,-3214.25,0.000245,14]
[399292249,1766247051627,-1000.0,0.00024567,10]
[399292251,1766247051636,-791.0,0.00024567,10]
[399292253,1766247051646,-2505.71699154,0.0002458,22]
[399292255,1766247051655,-223.13203346,0.00024735,22]
[399292257,1766247051665,-211.33371,0.000248,2]
[399292259,1766247051674,-2505.71699154,0.00024852,23]
[399292261,1766247051683,-388.49180522,0.00024865,22]
[399292263,1766247051692,-10028.6008629,0.000249,2]
[399292265,1766247051702,-2505.71699154,0.00025124,23]
[399292268,1766247051711,-388.49180522,0.00025321,23]
[399292270,1766247051721,-2505.71699154,0.00025396,24]
[399292272,1766247051730,-279.43932085,0.00025412,2]
[399292274,1766247051740,-2505.71699154,0.00025667,24]
[399292276,1766247051749,-223.13203346,0.00025678,24]
[399292278,1766247051759,-1253.57510786,0.0002569,2]
[399292280,1766247051770,-15705.26,0.000257,2]
[399292282,1766247051780,-271.3139524,0.000257,2]
[399292284,1766247051789,-155.0,0.00025759,3]
[399292286,1766247051799,-155.0,0.00025759,3]
[399292288,1766247051808,-155.0,0.00025759,3]
[399292290,1766247051817,-155.0,0.00025759,3]
[399292292,1766247051827,-155.0,0.00025759,3]
[399292294,1766247051836,-155.0,0.00025759,3]
[399292296,1766247051846,-155.0,0.00025759,3]
[399292298,1766247051855,-155.0,0.00025759,3]
[399292300,1766247051865,-155.0,0.00025759,3]
[399292302,1766247051874,-155.0,0.00025759,3]
[399292304,1766247051883,-155.0,0.00025759,3]
[399292306,1766247051893,-155.0,0.00025759,3]
[399292308,1766247051902,-155.0,0.00025759,3]
[399292310,1766247051912,-155.0,0.00025759,3]
[399292312,1766247051922,-155.0,0.00025759,3]
[399292314,1766247051932,-155.0,0.00025759,3]
[399292316,1766247051941,-155.0,0.00025759,3]
[399292318,1766247051951,-155.0,0.00025759,3]
[399292320,1766247051960,-155.0,0.00025759,3]
[399292322,1766247051970,-155.0,0.00025759,3]
[399292324,1766247051983,-155.0,0.00025759,3]
[399292326,1766247051992,-155.0,0.00025759,3]
[399292328,1766247052001,-155.0,0.00025759,3]
[399292330,1766247052010,-155.0,0.00025759,3]
[399292332,1766247052021,-155.0,0.00025759,3]
[399292334,1766247052029,-155.0,0.00025759,3]
[399292336,1766247052038,-155.0,0.00025759,3]
[399292338,1766247052048,-155.0,0.00025759,3]
[399292340,1766247052058,-155.0,0.00025759,3]
[399292342,1766247052067,-155.0,0.00025759,3]
[399292344,1766247052076,-155.0,0.00025759,3]
[399292346,1766247052085,-165.74610593,0.00025759,3]
[399292348,1766247052095,-388.49180522,0.00025776,24]
[399292350,1766247052104,-1023.39779362,0.00025891,2]
[399292352,1766247052113,-2505.71699154,0.00025939,25]
[399292354,1766247052123,-1253.57510786,0.0002599,2]
[399292356,1766247052131,-819.66417285,0.00025991,2]
[399292750,1766247187004,642.37935127,0.00013273,2]
[399292756,1766247228962,-500.0,0.00041327,120]
[399292757,1766247228988,-7925.734506,0.00041327,120]
[399292758,1766247229014,-3795.0,0.00041327,20]
[399292759,1766247229037,-40001.5447252,0.00041327,20]
[399292760,1766247230490,1266.1,0.00041327,20]
[399292761,1766247250543,5000.0,0.000153,120]
[399292762,1766247271085,506.2457458,0.00013296,2]
[399292763,1766247275012,167.85663197,0.000153,120]
[399292768,1766247483615,500.0,0.00013273,2]
[399292769,1766247527303,-3683.0,0.00041305,20]
[399292770,1766247527327,-6641.78700371,0.00041305,60]
[399292771,1766247527352,-6376.56223156,0.00041305,30]
[399292772,1766247527375,-2983298.65076473,0.00041305,30]
[399292773,1766247531641,-2772279.15893527,0.00041305,30]
[399292774,1766247531666,-150.1,0.00041305,40]
[399292775,1766247531690,-500.0,0.00041305,120]
[399292776,1766247531714,-12011.0,0.00041305,30]
[399292777,1766247531739,-10000.60652711,0.00041305,120]
[399292778,1766247531763,-250.0,0.00041305,120]
[399292779,1766247531788,-250.0,0.00041305,120]
[399292780,1766247531812,-250.0,0.00041305,120]
[399292781,1766247531836,-250.0,0.00041305,120]
[399292782,1766247531859,-250.0,0.00041305,120]
[399292783,1766247531884,-250.0,0.00041305,120]
[399292784,1766247531907,-250.0,0.00041305,120]
[399292785,1766247531930,-250.0,0.00041305,120]
[399292786,1766247531954,-250.0,0.00041305,120]
[399292787,1766247531996,-500.0,0.00041305,120]
[399292788,1766247532028,-500.0,0.00041305,120]
[399292789,1766247532059,-500.0,0.00041305,120]
[399292790,1766247532091,-500.0,0.00041305,120]
[399292791,1766247532124,-500.0,0.00041305,120]
[399292792,1766247532157,-500.0,0.00041305,120]
[399292793,1766247532192,-500.0,0.00041305,120]
[399292794,1766247532223,-500.0,0.00041305,120]
[399292795,1766247532256,-500.0,0.00041305,120]
[399292796,1766247532286,-3888.0,0.00041305,30]
[399292797,1766247532318,-160.0,0.00041305,120]
[399292798,1766247532353,-414.0,0.00041305,120]
[399292799,1766247532386,-500.0,0.00041305,120]
[399292800,1766247532420,-500.0,0.00041305,120]
[399292801,1766247532448,-4031.856,0.00041305,30]
[399292802,1766247532478,-250.0,0.00041305,120]
[399292803,1766247532510,-160.0,0.00041305,120]
[399292804,1766247532537,-429.318,0.00041305,120]
[399292805,1766247532568,-500.0,0.00041305,120]
[399292806,1766247532595,-500.0,0.00041305,120]
[399292807,1766247532624,-4181.034672,0.00041305,60]
[399292808,1766247532666,-250.0,0.00041305,120]
[399292809,1766247532697,-500.0,0.00041305,120]
[399292810,1766247532728,-250.0,0.00041305,120]
[399292811,1766247532759,-445.202766,0.00041305,120]
[399292812,1766247532788,-500.0,0.00041305,120]
[399292813,1766247532818,-4335.73295486,0.00041305,60]
[399292814,1766247532848,-500.0,0.00041305,120]
[399292815,1766247532878,-250.0,0.00041305,120]
[399292816,1766247532916,-461.67526834,0.00041305,120]
[399292817,1766247532946,-500.0,0.00041305,120]
[399292818,1766247532977,-4496.15507419,0.00041305,30]
[399292819,1766247533007,-500.0,0.00041305,120]
[399292820,1766247533040,-250.0,0.00041305,120]
[399292821,1766247533074,-478.75725327,0.00041305,120]
[399292822,1766247533113,-500.0,0.00041305,120]
[399292823,1766247533148,-4662.51281194,0.00041305,30]
[399292824,1766247533179,-500.0,0.00041305,120]
[399292825,1766247533210,-250.0,0.00041305,120]
[399292826,1766247533242,-500.0,0.00041305,120]
[399292827,1766247533273,-496.47127164,0.00041305,120]
[399292828,1766247533305,-500.0,0.00041305,120]
[399292829,1766247533336,-4835.02578598,0.00041305,60]
[399292830,1766247533365,-250.0,0.00041305,120]
[399292831,1766247533398,-500.0,0.00041305,120]
[399292832,1766247533427,-514.84070869,0.00041305,120]
[399292833,1766247533458,-5013.92174006,0.00041305,30]
[399292834,1766247533489,-500.0,0.00041305,120]
[399292835,1766247533519,-250.0,0.00041305,120]
[399292836,1766247533551,-500.0,0.00041305,120]
[399292837,1766247533582,-533.88981491,0.00041305,120]
[399292838,1766247533614,-5013.92174006,0.00041305,30]
[399292839,1766247533648,-500.0,0.00041305,120]
[399292840,1766247533687,-250.0,0.00041305,120]
[399292841,1766247533722,-500.0,0.00041305,120]
[399292842,1766247533754,-533.88981491,0.00041305,120]
[399292843,1766247533784,-500.0,0.00041305,120]
[399292844,1766247533815,-500.0,0.00041305,120]
[399292845,1766247533847,-500.0,0.00041305,120]
[399292846,1766247533879,-500.0,0.00041305,120]
[399292847,1766247533910,-500.0,0.00041305,120]
[399292848,1766247533941,-151.0,0.00041305,120]
[399292849,1766247533970,-2000.0,0.00041305,120]
[399292850,1766247534001,-500.0,0.00041305,120]
[399292851,1766247534032,-2074.0,0.00041305,120]
[399292852,1766247534064,-500.0,0.00041305,120]
[399292853,1766247534095,-151.0,0.00041305,120]
[399292854,1766247534124,-2150.738,0.00041305,120]
[399292855,1766247534156,-500.0,0.00041305,120]
[399292856,1766247534191,-151.0,0.00041305,120]
[399292857,1766247534223,-250.0,0.00041305,120]
[399292858,1766247534254,-2230.315306,0.00041305,120]
[399292859,1766247534285,-151.0,0.00041305,120]
[399292860,1766247534325,-250.0,0.00041305,120]
[399292861,1766247534354,-500.0,0.00041305,120]
[399292862,1766247534384,-151.0,0.00041305,120]
[399292863,1766247534412,-2312.83697232,0.00041305,120]
[399292864,1766247534442,-151.0,0.00041305,120]
[399292865,1766247534473,-250.0,0.00041305,120]
[399292866,1766247534503,-500.0,0.00041305,120]
[399292867,1766247534532,-156.587,0.00041305,120]
[399292868,1766247535169,-2398.4119403,0.00041305,120]
[399292869,1766247535250,-151.0,0.00041305,120]
[399292870,1766247535276,-250.0,0.00041305,120]
[399292871,1766247535305,-500.0,0.00041305,120]
[399292872,1766247535329,-162.380719,0.00041305,120]
[399292873,1766247535353,-2487.15318209,0.00041305,120]
[399292874,1766247535379,-250.0,0.00041305,120]
[399292875,1766247535403,-151.0,0.00041305,120]
[399292876,1766247535427,-168.3888056,0.00041305,120]
[399292877,1766247535450,-250.0,0.00041305,120]
[399292878,1766247535475,-151.0,0.00041305,120]
[399292879,1766247535498,-174.61919141,0.00041305,120]
[399292880,1766247535522,-250.0,0.00041305,120]
[399292881,1766247535545,-151.0,0.00041305,120]
[399292882,1766247535568,-181.08010149,0.00041305,120]
[399292883,1766247535593,-250.0,0.00041305,120]
[399292884,1766247535616,-187.78006525,0.00041305,120]
[399292885,1766247535640,-250.0,0.00041305,120]
[399292886,1766247535664,-194.72792766,0.00041305,120]
[399292887,1766247535688,-151.0,0.00041305,120]
[399292888,1766247535711,-194.72792766,0.00041305,120]
[399292889,1766247535735,-151.0,0.00041305,120]
[399292890,1766247535761,-151.0,0.00041305,120]
[399292891,1766247535787,-500.0,0.00041305,120]
[399292892,1766247535813,-500.0,0.00041305,120]
[399292893,1766247535838,-500.0,0.00041305,120]
[399292894,1766247535861,-500.0,0.00041305,120]
[399292895,1766247535886,-151.0,0.00041305,120]
[399292896,1766247535911,-500.0,0.00041305,120]
[399292897,1766247535938,-1111.0,0.00041305,120]
[399292898,1766247535963,-151.0,0.00041305,120]
[399292899,1766247535989,-500.0,0.00041305,120]
[399292900,1766247536015,-1111.0,0.00041305,120]
[399292901,1766247536042,-500.0,0.00041305,120]
[399292902,1766247536084,-151.0,0.00041305,120]
[399292903,1766247536111,-1111.0,0.00041305,120]
[399292904,1766247536135,-500.0,0.00041305,120]
[399292905,1766247536159,-151.0,0.00041305,120]
[399292906,1766247536185,-1111.0,0.00041305,120]
[399292907,1766247536211,-500.0,0.00041305,120]
[399292908,1766247536236,-1111.0,0.00041305,120]
[399292909,1766247536261,-1111.0,0.00041305,120]
[399292910,1766247536285,-1111.0,0.00041305,120]
[399292911,1766247536314,-1111.0,0.00041305,120]
[399292912,1766247536337,-151.0,0.00041305,120]
[399292913,1766247536364,-1111.0,0.00041305,120]
[399292914,1766247536388,-1111.0,0.00041305,120]
[399292915,1766247536412,-250.0,0.00041305,120]
[399292916,1766247536436,-151.0,0.00041305,120]
[399292917,1766247536459,-1111.0,0.00041305,120]
[399292918,1766247536483,-250.0,0.00041305,120]
[399292919,1766247536508,-151.0,0.00041305,120]
[399292920,1766247536532,-1111.0,0.00041305,120]
[399292921,1766247536554,-250.0,0.00041305,120]
[399292922,1766247536577,-151.0,0.00041305,120]
[399292923,1766247536601,-1111.0,0.00041305,120]
[399292924,1766247536624,-250.0,0.00041305,120]
[399292925,1766247537796,151.0,0.00041305,120]
[399292926,1766247537829,1111.0,0.00041305,120]
[399292927,1766247537899,151.0,0.00041305,120]
[399292928,1766247537929,250.0,0.00041305,120]
[399292929,1766247537962,1111.0,0.00041305,120]
[399292930,1766247537997,151.0,0.00041305,120]
[399292931,1766247538026,250.0,0.00041305,120]
[399292932,1766247538067,1111.0,0.00041305,120]
[399292933,1766247538096,151.0,0.00041305,120]
[399292934,1766247538129,250.0,0.00041305,120]
[399292935,1766247538267,1111.0,0.00041305,120]
[399292936,1766247538303,151.0,0.00041305,120]
[399292937,1766247538331,250.0,0.00041305,120]
[399292938,1766247538483,1111.0,0.00041305,120]
[399292939,1766247538515,250.0,0.00041305,120]
[399292940,1766247538571,1111.0,0.00041305,120]
[399292941,1766247538612,1111.0,0.00041305,120]
[399292942,1766247538655,150.0,8.338e-05,2]
[399292943,1766247538746,150.0,8.542e-05,2]
[399292944,1766247538889,150.0,8.745e-05,2]
[399292947,1766247919340,-3189664.4088,0.0004114,30]
[399292948,1766247919370,-79385.0,0.0004114,120]
[399292949,1766247919401,-33287.0,0.0004114,120]
[399292950,1766247919428,-5571.92987605,0.0004114,60]
[399292951,1766247919454,-7714.694699,0.0004114,30]
[399292952,1766247919485,-9734.69890835,0.0004114,60]
[399292953,1766247919513,-2095.52,0.0004114,120]
[399292954,1766247919543,-2095.52,0.0004114,120]
[399292956,1766247919571,-2095.52,0.0004114,120]
[399292957,1766247919605,-2095.52,0.0004114,120]
[399292958,1766247919634,-500.0,0.0004114,120]